bitfinex/quotes_BTCUSD_20250403
["timestamp","ask_amount","ask_price","bid_price","bid_amount"]
[1743676141200,0.01013342,83312.0,83311.0,0.85828345]
[1743676143480,0.01013342,83312.0,83311.0,0.85840345]
[1743676144629,0.01,83312.0,83311.0,0.85840345]
[1743676145350,0.01,83312.0,83311.0,0.85857195]
[1743676145507,0.010337,83312.0,83311.0,0.85857195]
[1743676148351,0.010337,83312.0,83311.0,0.86357195]
[1743676148551,0.000337,83312.0,83311.0,0.91097195]
[1743676151104,0.000337,83312.0,83311.0,0.91987494]
[1743676153535,0.000337,83312.0,83311.0,0.91987416]
[1743676156127,1e-06,83312.0,83311.0,0.91987416]
[1743676156954,1e-06,83312.0,83311.0,0.91287416]
[1743676157155,1e-06,83312.0,83311.0,0.91787416]
[1743676157445,1e-06,83312.0,83311.0,0.91987416]
[1743676157848,1e-06,83312.0,83311.0,0.87247416]
[1743676158029,1e-06,83312.0,83311.0,0.86747416]
[1743676158211,1e-06,83312.0,83311.0,0.87247416]
[1743676158406,1e-06,83312.0,83311.0,0.86747416]
[1743676158639,1e-06,83312.0,83311.0,0.87247416]
[1743676161768,1e-06,83312.0,83311.0,0.99587416]
[1743676162581,1e-06,83312.0,83311.0,0.99387416]
[1743676163440,1e-06,83312.0,83311.0,0.87580526]
[1743676163633,0.020001,83312.0,83311.0,0.99279416]
[1743676163836,1e-06,83312.0,83311.0,0.99279416]
[1743676167534,1e-06,83312.0,83311.0,0.79285416]
[1743676167696,0.010001,83312.0,83311.0,0.91325416]
[1743676169087,0.010001,83312.0,83311.0,0.86395416]
[1743676177315,0.00360172,83312.0,83311.0,0.36465117]
[1743676177521,0.00360172,83312.0,83311.0,0.23335472]
[1743676177731,0.00360172,83312.0,83311.0,0.0011685]
[1743676177992,0.05240172,83312.0,83311.0,0.2412325]
[1743676178238,0.05240172,83312.0,83311.0,0.2532355]
[1743676178655,0.06440472,83312.0,83311.0,0.0001685]
[1743676178771,0.30446572,83312.0,83311.0,0.0011685]
[1743676178969,0.3155814,83312.0,83311.0,0.0011685]
[1743676179376,0.3155814,83312.0,83311.0,0.0001685]
[1743676179621,0.3848814,83312.0,83311.0,0.0001685]
[1743676179829,0.346488,83304.0,83303.0,0.0001685]
[1743676180028,0.252097,83301.0,83300.0,0.1]
[1743676180200,0.6447526,83301.0,83300.0,0.1]
[1743676180644,0.25213,83290.0,83281.0,0.004]
[1743676180827,0.54233,83290.0,83281.0,0.004]
[1743676181003,0.58773,83290.0,83281.0,0.004]
[1743676181412,0.59884568,83290.0,83281.0,0.004]
[1743676181606,0.71802568,83290.0,83281.0,0.004]
[1743676181871,0.60771681,83290.0,83281.0,0.004]
[1743676182234,0.60771681,83290.0,83289.0,0.10829678]
[1743676183224,0.34671568,83290.0,83289.0,0.10829678]
[1743676183451,0.35872168,83290.0,83289.0,0.10829678]
[1743676184372,0.347606,83290.0,83289.0,0.10829678]
[1743676184573,0.3356,83290.0,83289.0,0.10829678]
[1743676185029,0.2954,83290.0,83289.0,0.10829678]
[1743676185230,0.25,83290.0,83289.0,0.10829678]
[1743676185641,0.25,83290.0,83289.0,0.23705838]
[1743676186695,0.25,83290.0,83289.0,0.21495838]
[1743676187534,0.25,83290.0,83289.0,0.21395838]
[1743676187737,0.25,83290.0,83289.0,0.1287616]
[1743676189088,0.25,83290.0,83289.0,0.12862818]
[1743676189576,0.25,83290.0,83287.0,0.0001687]
[1743676189804,0.25,83290.0,83287.0,0.2403007]
[1743676190057,0.25,83290.0,83287.0,0.2523067]
[1743676191171,0.25,83290.0,83288.0,0.240129]
[1743676191398,0.25,83290.0,83288.0,0.252135]
[1743676191574,0.25,83290.0,83289.0,0.1287616]
[1743676192042,0.25,83290.0,83289.0,0.1289302]
[1743676192244,0.2503372,83290.0,83289.0,0.1289302]
[1743676192804,0.2503372,83290.0,83289.0,0.3690572]
[1743676198709,0.2503372,83290.0,83289.0,0.1169242]
[1743676198889,0.2503372,83290.0,83289.0,0.3690572]
[1743676199337,0.2503372,83290.0,83289.0,0.0001686]
[1743676199807,0.2503372,83290.0,83289.0,0.3690572]
[1743676203130,0.2503372,83290.0,83289.0,0.42969805]
[1743676203871,0.2503372,83290.0,83289.0,0.43469805]
[1743676204073,2e-07,83290.0,83289.0,0.79969805]
[1743676205688,2e-07,83290.0,83289.0,0.80874275]
[1743676205896,0.000337,83312.0,83311.0,0.252067]
[1743676206114,0.000337,83312.0,83311.0,0.76976345]
[1743676210004,0.000337,83312.0,83311.0,0.77876726]
[1743676210428,0.000337,83312.0,83311.0,0.7908563]
[1743676211312,0.000337,83312.0,83311.0,0.7958563]
[1743676211450,0.000337,83312.0,83311.0,0.7908563]
[1743676211857,0.020337,83312.0,83311.0,0.7444563]
[1743676212058,0.020337,83312.0,83311.0,0.73545249]
[1743676212258,0.020337,83312.0,83311.0,0.39545249]
[1743676214047,0.000337,83312.0,83311.0,0.39545249]
[1743676215728,0.0477,83343.0,83312.0,0.35454085]
[1743676215932,0.23,83343.0,83342.0,0.251973]
[1743676216157,0.23,83343.0,83342.0,0.3687286]
[1743676217536,0.0452,83342.0,83330.0,0.012]
[1743676217734,0.2752,83342.0,83335.0,0.011999]
[1743676217913,0.2752,83342.0,83339.0,0.239982]
[1743676218139,0.2752,83342.0,83340.0,0.239978]
[1743676218339,0.23,83342.0,83341.0,0.251975]
[1743676221824,0.23,83342.0,83341.0,0.3687306]
[1743676222933,0.0003372,83346.0,83345.0,0.60650485]
[1743676223200,0.0303372,83346.0,83345.0,0.72326045]
[1743676223600,0.0003372,83346.0,83345.0,0.72326045]
[1743676224141,0.0003372,83346.0,83345.0,0.77616045]
[1743676224342,0.0003372,83346.0,83345.0,0.78528319]
[1743676224518,0.0003372,83346.0,83345.0,0.81028319]
[1743676224937,2e-07,83346.0,83345.0,0.84476005]
[1743676225519,0.0003372,83372.0,83368.0,0.251895]
[1743676225724,0.274,83369.0,83368.0,0.3686506]
[1743676226463,0.274,83369.0,83368.0,0.40910927]
[1743676227136,0.274,83369.0,83368.0,0.41885269]
[1743676227339,0.513897,83369.0,83368.0,0.05020209]
[1743676227545,0.525891,83369.0,83368.0,0.05020209]
[1743676227885,0.526228,83369.0,83368.0,0.02923034]
[1743676228329,0.66288519,83369.0,83368.0,0.02923034]
[1743676228703,1.11964079,83369.0,83358.0,0.00374747]
[1743676228909,0.251922,83359.0,83358.0,0.00374747]
[1743676229092,0.511922,83359.0,83358.0,0.00374747]
[1743676229843,0.251933,83355.0,83354.0,0.00749651]
[1743676230060,0.251933,83355.0,83345.0,0.251962]
[1743676230061,0.239952,83350.0,83345.0,0.251962]
[1743676230269,0.469952,83350.0,83345.0,0.251962]
[1743676230899,0.469952,83350.0,83346.0,0.239963]
[1743676231100,0.469952,83350.0,83341.0,0.011998]
[1743676231101,0.011998,83347.0,83341.0,0.251974]
[1743676231326,0.27,83347.0,83342.0,0.011998]
[1743676231528,0.521959,83347.0,83341.0,0.251975]
[1743676232191,0.251962,83346.0,83341.0,0.239977]
[1743676232392,0.251962,83346.0,83337.0,0.251988]
[1743676232393,0.239968,83345.0,83339.0,0.011999]
[1743676232624,0.499968,83345.0,83339.0,0.011999]
[1743676232826,0.499968,83345.0,83342.0,0.239974]
[1743676232827,0.26,83345.0,83342.0,0.239974]
[1743676233022,0.26,83345.0,83340.0,0.011999]
[1743676233023,0.26,83345.0,83340.0,0.251979]
[1743676233866,0.239969,83344.0,83340.0,0.23998]
[1743676234075,0.499969,83344.0,83340.0,0.23998]
[1743676234325,0.499969,83344.0,83318.0,0.01427641]
[1743676234326,0.012001,83324.0,83318.0,0.01427641]
[1743676234531,0.26,83324.0,83318.0,0.13103201]
[1743676234736,0.240031,83323.0,83318.0,0.01427641]
[1743676234935,0.26,83323.0,83318.0,0.01427641]
[1743676235141,0.012001,83322.0,83315.0,0.012002]
[1743676235378,0.500032,83322.0,83318.0,0.240043]
[1743676236132,0.500032,83322.0,83316.0,0.1167556]
[1743676236133,0.012001,83320.0,83309.0,0.012003]
[1743676236341,0.240044,83318.0,83313.0,0.012002]
[1743676236536,0.26,83318.0,83315.0,0.240052]
[1743676236790,0.26,83318.0,83317.0,0.252049]
[1743676236936,0.26,83318.0,83317.0,0.3688046]
[1743676238018,0.26,83318.0,83317.0,0.38334545]
[1743676241271,0.26,83318.0,83317.0,0.73228285]
[1743676243133,0.26,83318.0,83317.0,0.74111646]
[1743676249098,0.26,83318.0,83317.0,0.73228285]
[1743676249309,0.26,83318.0,83317.0,0.0089374]
[1743676249725,0.26,83318.0,83316.0,0.0209394]
[1743676249923,0.240047,83317.0,83316.0,0.0089374]
[1743676250131,0.532049,83317.0,83316.0,0.0089374]
[1743676250657,0.28,83317.0,83316.0,0.0089374]
[1743676251216,0.28,83317.0,83315.0,0.240052]
[1743676251450,0.28,83317.0,83315.0,0.252054]
[1743676252438,0.28,83317.0,83314.0,0.252056]
[1743676253630,0.28,83317.0,83315.0,0.240052]
[1743676254561,0.28,83317.0,83314.0,0.240054]
[1743676254806,0.28,83317.0,83315.0,0.240051]
[1743676255391,0.28,83317.0,83314.0,0.240054]
[1743676256246,0.28,83317.0,83315.0,0.240052]
[1743676256664,0.28,83317.0,83316.0,0.240049]
[1743676256865,0.28,83317.0,83316.0,0.252051]
[1743676258049,0.28,83317.0,83316.0,0.240049]
[1743676258421,0.28,83317.0,83315.0,0.252054]
[1743676259209,0.28,83317.0,83315.0,0.240052]
[1743676259416,0.28,83317.0,83311.0,0.2402305]
[1743676259631,0.012002,83313.0,83311.0,0.0001685]
[1743676259869,0.240061,83312.0,83311.0,0.0001685]
[1743676260101,0.502064,83312.0,83311.0,0.0001685]
[1743676260267,0.550964,83312.0,83311.0,0.0001685]
[1743676261043,0.599164,83312.0,83311.0,0.0001685]
[1743676263663,0.939164,83312.0,83311.0,0.0001685]
[1743676265059,0.699103,83312.0,83311.0,0.0001685]
[1743676266057,0.939164,83312.0,83311.0,0.0001685]
[1743676269419,0.490061,83312.0,83311.0,0.0001685]
[1743676269628,0.25,83312.0,83311.0,0.0001685]
[1743676270499,0.25,83312.0,83311.0,0.1289271]
[1743676270711,0.25,83312.0,83311.0,0.1458684]
[1743676270920,0.25,83312.0,83311.0,0.14586816]
[1743676271129,0.25,83312.0,83311.0,0.48586816]
[1743676271344,0.046,83348.0,83337.0,0.011999]
[1743676271558,0.0489,83350.0,83347.0,0.011998]
[1743676271790,0.261997,83350.0,83340.0,0.011999]
[1743676271995,0.239965,83346.0,83342.0,0.239975]
[1743676272201,0.25,83346.0,83343.0,0.1167556]
[1743676272827,0.239968,83345.0,83343.0,0.1167556]
[1743676273040,0.499968,83345.0,83343.0,0.1167556]
[1743676273399,0.26,83345.0,83343.0,0.1167556]
[1743676273781,0.26,83345.0,83320.0,0.22879781]
[1743676273782,0.24,83334.0,83317.0,0.34]
[1743676273983,0.28,83334.0,83328.0,0.1167556]
[1743676274433,0.28,83334.0,83333.0,0.012]
[1743676274639,0.28,83334.0,83333.0,0.1287556]
[1743676275718,0.28,83334.0,83333.0,0.1167556]
[1743676276205,0.28,83334.0,83333.0,0.012]
[1743676277943,0.28,83334.0,83333.0,0.13115545]
[1743676278217,0.28,83334.0,83333.0,0.14329645]
[1743676278422,0.28,83334.0,83333.0,0.1167556]
[1743676278625,0.28,83334.0,83326.0,0.240018]
[1743676278626,0.240026,83324.0,83323.0,0.01454085]
[1743676278830,0.23,83324.0,83323.0,0.1167556]
[1743676279029,0.242001,83324.0,83317.0,0.012002]
[1743676279309,0.240029,83323.0,83320.0,0.240037]
[1743676279524,0.27,83323.0,83320.0,0.3567926]
[1743676279959,0.27,83323.0,83322.0,0.012001]
[1743676280169,0.27,83323.0,83322.0,0.1287566]
[1743676281377,0.27,83323.0,83322.0,0.14329745]
[1743676282610,0.27,83323.0,83322.0,0.38332945]
[1743676285547,0.27,83323.0,83322.0,0.72332945]
[1743676285748,0.27,83323.0,83322.0,0.77262945]
[1743676286893,0.0482,83358.0,83353.0,0.239943]
[1743676287093,0.558129,83358.0,83355.0,0.239936]
[1743676287305,0.558129,83358.0,83352.0,0.011997]
[1743676287511,0.558129,83358.0,83353.0,0.251937]
[1743676287685,0.27,83358.0,83357.0,0.251927]
[1743676288940,0.27,83358.0,83357.0,0.3686826]
[1743676289163,0.27,83358.0,83357.0,0.38322345]
[1743676289808,0.271,83358.0,83357.0,0.38322345]
[1743676290219,0.27,83358.0,83357.0,0.38322345]
[1743676291015,0.27,83358.0,83357.0,0.3686826]
[1743676291230,0.281996,83358.0,83353.0,0.011997]
[1743676291434,0.011998,83346.0,83326.0,0.10718828]
[1743676291640,0.25,83346.0,83337.0,0.251988]
[1743676291846,0.25,83346.0,83342.0,0.011998]
[1743676292081,0.25,83346.0,83344.0,0.239968]
[1743676292483,0.251968,83344.0,83338.0,0.1287546]
[1743676292683,0.23998,83341.0,83336.0,0.011999]
[1743676292888,0.46998,83341.0,83336.0,0.011999]
[1743676293094,0.23,83341.0,83340.0,0.23998]
[1743676293297,0.23,83341.0,83340.0,0.251979]
[1743676293908,0.23,83341.0,83340.0,0.25186702]
[1743676295976,0.23,83341.0,83340.0,0.36862262]
[1743676298170,0.23,83341.0,83340.0,0.38316347]
[1743676303767,0.23,83341.0,83340.0,0.01454085]
[1743676303768,0.469977,83341.0,83340.0,0.01454085]
[1743676303986,0.23,83341.0,83334.0,0.011999]
[1743676304200,0.23,83341.0,83339.0,0.23998]
[1743676304405,0.23,83341.0,83340.0,0.251979]
[1743676304606,0.23,83341.0,83340.0,0.23998]
[1743676304838,0.23,83341.0,83338.0,0.239986]
[1743676305255,0.23998,83340.0,83336.0,0.239992]
[1743676305387,0.25,83340.0,83337.0,0.239988]
[1743676305587,0.25,83340.0,83339.0,0.239983]
[1743676306811,0.25,83340.0,83339.0,0.251982]
[1743676307364,0.25,83340.0,83339.0,0.38327845]
[1743676307977,0.25,83340.0,83339.0,0.25452385]
[1743676308195,0.25,83340.0,83339.0,0.251982]
[1743676308930,0.25,83340.0,83339.0,0.24876241]
[1743676309130,0.25,83340.0,83339.0,0.38005886]
[1743676310522,0.239935,83356.0,83339.0,0.38005886]
[1743676310523,0.000337,83358.0,83357.0,0.251927]
[1743676310731,0.260337,83358.0,83357.0,0.38322345]
[1743676312118,0.260337,83358.0,83357.0,0.3686826]
[1743676312328,0.260337,83358.0,83357.0,0.38322345]
[1743676313162,0.260337,83358.0,83357.0,0.76892345]
[1743676314443,0.000337,83358.0,83357.0,0.76892345]
[1743676315764,0.010337,83358.0,83357.0,0.76892345]
[1743676318247,0.0003372,83372.0,83367.0,0.251898]
[1743676318441,0.0403368,83368.0,83367.0,0.7086536]
[1743676319748,0.0403368,83368.0,83367.0,0.72319445]
[1743676319971,0.0403368,83368.0,83367.0,0.38319445]
[1743676320172,0.1351368,83368.0,83367.0,0.01454085]
[1743676320362,0.1351368,83368.0,83340.0,0.011999]
[1743676320363,0.011997,83348.0,83340.0,0.011999]
[1743676320560,0.24,83348.0,83346.0,0.239963]
[1743676321125,0.24,83348.0,83344.0,0.251964]
[1743676321307,0.24,83348.0,83345.0,0.239965]
[1743676321500,0.24,83348.0,83347.0,0.011998]
[1743676321877,0.24,83348.0,83346.0,0.239962]
[1743676322084,0.24,83348.0,83345.0,0.239965]
[1743676323521,0.24,83348.0,83346.0,0.239963]
[1743676323749,0.24,83348.0,83346.0,0.3567186]
[1743676323983,0.24,83348.0,83347.0,0.1287536]
[1743676324192,0.24,83348.0,83347.0,0.14329445]
[1743676324818,0.24,83348.0,83347.0,0.14569382]
[1743676325013,0.24,83348.0,83347.0,0.14329445]
[1743676325672,0.24,83348.0,83347.0,0.38325445]
[1743676329283,0.24,83348.0,83347.0,0.72325445]
[1743676329925,0.0003368,83358.0,83357.0,0.251927]
[1743676330104,0.0403368,83358.0,83357.0,0.38322345]
[1743676333848,0.0003368,83358.0,83357.0,0.38322345]
[1743676334209,0.0003368,83358.0,83357.0,0.72322345]
[1743676335302,0.0003368,83358.0,83357.0,0.73220631]
[1743676336697,0.0003368,83358.0,83357.0,0.73720631]
[1743676337111,8e-07,83358.0,83357.0,0.73720631]
[1743676337304,8e-07,83358.0,83357.0,0.78290631]
[1743676337533,8e-07,83358.0,83357.0,0.80790631]
[1743676350345,8e-07,83358.0,83357.0,0.80807471]
[1743676351589,8e-07,83372.0,83369.0,0.005]
[1743676351770,0.0100008,83372.0,83371.0,0.72818145]
[1743676352557,8e-07,83372.0,83371.0,0.72818145]
[1743676353044,8e-07,83372.0,83371.0,0.72318145]
[1743676353451,8e-07,83372.0,83371.0,0.72818145]
[1743676354170,8e-07,83372.0,83371.0,0.72318145]
[1743676354373,0.0100008,83372.0,83371.0,0.72318145]
[1743676355045,0.0100008,83372.0,83371.0,0.73508396]
[1743676361220,8e-07,83372.0,83371.0,0.73508396]
[1743676363351,0.0001691,83372.0,83371.0,0.73508396]
[1743676369828,0.0001691,83372.0,83371.0,0.39508396]
[1743676369999,0.0001691,83372.0,83371.0,0.38054311]
[1743676370185,0.0001691,83372.0,83371.0,0.39508396]
[1743676370600,0.0001691,83372.0,83371.0,0.38318145]
[1743676371395,0.0001691,83372.0,83371.0,0.3686406]
[1743676371609,0.0001691,83372.0,83367.0,0.0003366]
[1743676371610,0.334091,83371.0,83367.0,0.0003366]
[1743676371815,0.584091,83371.0,83368.0,0.239897]
[1743676372163,0.3442,83371.0,83369.0,0.239896]
[1743676372840,0.3442,83371.0,83370.0,0.251888]
[1743676373411,0.09399386,83371.0,83370.0,0.3686436]
[1743676374264,0.09399386,83371.0,83367.0,0.01202501]
[1743676374265,0.2399,83368.0,83367.0,0.01202501]
[1743676374488,0.28,83368.0,83367.0,0.0003366]
[1743676375934,0.28,83368.0,83367.0,0.2522346]
[1743676380691,0.28,83368.0,83367.0,0.38353105]
[1743676382484,0.0001683,83372.0,83367.0,0.38353105]
[1743676382485,0.0001683,83372.0,83371.0,0.591885]
[1743676382805,5e-07,83374.0,83373.0,0.591879]
[1743676383012,5e-07,83374.0,83373.0,0.77017545]
[1743676383702,5e-07,83374.0,83373.0,0.77896707]
[1743676383907,5e-07,83374.0,83373.0,0.78396707]
[1743676384342,5e-07,83374.0,83373.0,0.80896707]
[1743676384507,5e-07,83374.0,83373.0,0.78396707]
[1743676384687,5e-07,83374.0,83373.0,0.80896707]
[1743676387646,5e-07,83374.0,83373.0,0.80396707]
[1743676387883,0.0100005,83374.0,83373.0,0.80396707]
[1743676388310,5e-07,83374.0,83373.0,0.80396707]
[1743676388508,0.004,83399.0,83395.0,0.251813]
[1743676388710,0.240337,83396.0,83395.0,0.38310945]
[1743676388916,0.240337,83396.0,83395.0,0.3685686]
[1743676390584,0.240337,83396.0,83395.0,0.1167556]
[1743676390798,0.240337,83396.0,83395.0,0.3565776]
[1743676390982,0.240337,83396.0,83395.0,0.3685686]
[1743676392220,0.252327,83396.0,83388.0,0.23984]
[1743676392429,0.239863,83381.0,83375.0,0.011994]
[1743676392639,0.251851,83382.0,83378.0,0.23987]
[1743676392847,0.519859,83382.0,83379.0,0.239868]
[1743676393057,0.519859,83382.0,83372.0,0.011994]
[1743676393058,0.239889,83372.0,83364.0,0.011995]
[1743676393260,0.239889,83372.0,83363.0,0.10718828]
[1743676393261,0.251893,83369.0,83367.0,0.1170922]
[1743676393459,0.2399,83368.0,83367.0,0.0003366]
[1743676393613,0.25,83368.0,83367.0,0.0003366]
[1743676394216,0.4899,83368.0,83367.0,0.0003366]
[1743676394414,0.501895,83368.0,83367.0,0.0003366]
[1743676395466,0.549995,83368.0,83367.0,0.0003366]
[1743676397483,0.54944971,83368.0,83367.0,0.0003366]
[1743676398228,0.88944971,83368.0,83367.0,0.0003366]
[1743676398834,1.00620531,83368.0,83367.0,0.0003366]
[1743676399032,1.00620531,83368.0,83357.0,4e-07]
[1743676399033,0.679224,83358.0,83357.0,4e-07]
[1743676399211,1.0559796,83358.0,83357.0,4e-07]
[1743676402627,0.291664,83345.0,83344.0,0.0001684]
[1743676402825,0.561664,83345.0,83344.0,0.0001684]
[1743676403340,0.901664,83345.0,83344.0,0.0001684]
[1743676403546,1.18506361,83345.0,83344.0,4e-07]
[1743676403744,0.252012,83329.0,83312.0,0.2402285]
[1743676403947,0.252012,83329.0,83313.0,0.240057]
[1743676403948,0.541712,83329.0,83313.0,0.240057]
[1743676404252,0.541712,83329.0,83312.0,0.2522315]
[1743676404461,0.541712,83329.0,83313.0,0.240057]
[1743676404462,0.240047,83317.0,83313.0,0.240057]
[1743676404663,0.24005,83316.0,83312.0,0.2522315]
[1743676404863,0.47005,83316.0,83312.0,0.3569841]
[1743676405211,0.240057,83314.0,83312.0,0.0001685]
[1743676405427,0.352002,83313.0,83312.0,0.0001685]
[1743676405701,0.63870661,83313.0,83312.0,0.0001685]
[1743676406167,0.592002,83313.0,83312.0,0.0001685]
[1743676407470,0.70874601,83313.0,83312.0,0.0001685]
[1743676407702,0.75545062,83313.0,83312.0,0.0001685]
[1743676407912,0.63870661,83313.0,83312.0,0.0001685]
[1743676408969,0.592002,83313.0,83312.0,0.0001685]
[1743676410239,0.593002,83313.0,83312.0,0.0001685]
[1743676411349,0.63970661,83313.0,83312.0,0.0001685]
[1743676411767,0.68840661,83313.0,83312.0,0.0001685]
[1743676413294,0.92846461,83313.0,83312.0,0.0001685]
[1743676414229,0.83406,83313.0,83312.0,0.0001685]
[1743676417232,0.83406,83313.0,83311.0,5e-07]
[1743676417233,0.679864,83312.0,83311.0,5e-07]
[1743676417448,1.12786506,83312.0,83311.0,5e-07]
[1743676418888,1.0666196,83312.0,83311.0,5e-07]
[1743676419269,1.0676196,83312.0,83311.0,5e-07]
[1743676419439,0.952864,83312.0,83311.0,5e-07]
[1743676419619,0.913164,83312.0,83311.0,5e-07]
[1743676419827,0.576164,83312.0,83311.0,5e-07]
[1743676420252,0.528064,83312.0,83311.0,5e-07]
[1743676420649,0.868064,83312.0,83311.0,5e-07]
[1743676421441,0.98480801,83312.0,83311.0,5e-07]
[1743676421629,0.868064,83312.0,83311.0,5e-07]
[1743676422190,0.856061,83312.0,83311.0,5e-07]
[1743676422827,0.865064,83312.0,83311.0,5e-07]
[1743676423001,0.862064,83312.0,83311.0,5e-07]
[1743676423248,0.863064,83312.0,83311.0,5e-07]
[1743676423454,0.864064,83312.0,83311.0,5e-07]
[1743676424028,0.864064,83312.0,83311.0,0.0003373]
[1743676428414,0.9808196,83312.0,83311.0,0.0003373]
[1743676432036,0.864064,83312.0,83311.0,0.0003373]
[1743676432414,0.272,83312.0,83311.0,0.0003373]
[1743676432576,0.272,83312.0,83311.0,0.2524043]
[1743676433495,0.272,83312.0,83311.0,0.2404013]
[1743676433696,0.271,83312.0,83311.0,0.3691599]
[1743676433893,0.271,83312.0,83311.0,0.4175599]
[1743676434100,0.27,83312.0,83311.0,0.4175599]
[1743676434483,0.27,83312.0,83311.0,0.00931787]
[1743676434484,0.523064,83312.0,83311.0,0.00931787]
[1743676434709,0.511061,83312.0,83311.0,0.00931787]
[1743676435134,0.510061,83312.0,83311.0,0.00931787]
[1743676435336,0.27,83312.0,83311.0,0.00931787]
[1743676435540,0.27,83312.0,83311.0,0.01031787]
[1743676435762,0.27,83312.0,83311.0,0.0013373]
[1743676436133,0.27,83312.0,83311.0,0.0003373]
[1743676436903,0.2701685,83312.0,83311.0,0.0003373]
[1743676437613,0.2701685,83312.0,83311.0,0.0013373]
[1743676438024,0.5102295,83312.0,83311.0,0.0013373]
[1743676438435,0.2701685,83312.0,83311.0,0.0013373]
[1743676438652,0.2701685,83312.0,83311.0,0.01031174]
[1743676439055,0.2701685,83312.0,83311.0,0.37913434]
[1743676441208,0.2701685,83312.0,83311.0,0.37813434]
[1743676441433,0.2701685,83312.0,83311.0,0.38563555]
[1743676442140,0.5102295,83312.0,83311.0,0.01681295]
[1743676442317,0.2701685,83312.0,83311.0,0.01681295]
[1743676442558,0.2701685,83312.0,83311.0,0.25687695]
[1743676442964,0.2701685,83312.0,83311.0,0.24790251]
[1743676443492,0.2701685,83312.0,83311.0,0.2404013]
[1743676443648,0.2701685,83312.0,83311.0,0.0003373]
[1743676443850,0.5222325,83312.0,83311.0,0.0003373]
[1743676447326,1.0272881,83312.0,83311.0,3e-07]
[1743676447524,1.13693356,83312.0,83311.0,3e-07]
[1743676447948,0.9106325,83312.0,83311.0,3e-07]
[1743676448289,0.8622325,83312.0,83311.0,3e-07]
[1743676449525,0.8632325,83312.0,83311.0,3e-07]
[1743676454167,0.9799881,83312.0,83311.0,3e-07]
[1743676454368,1.00071309,83312.0,83311.0,3e-07]
[1743676454606,1.0925177,83312.0,83311.0,3e-07]
[1743676458307,1.07179271,83312.0,83311.0,3e-07]
[1743676458674,1.02669271,83312.0,83311.0,3e-07]
[1743676459942,0.68669271,83312.0,83311.0,0.0988003]
[1743676460138,0.02,83312.0,83311.0,0.2275589]
[1743676460554,0.02,83312.0,83311.0,0.4676199]
[1743676461396,0.10727409,83334.0,83333.0,0.252]
[1743676461605,0.34727409,83334.0,83333.0,0.3011]
[1743676462667,0.34727409,83334.0,83333.0,0.4178556]
[1743676462881,0.34727409,83334.0,83333.0,0.4672556]
[1743676464036,0.34727409,83334.0,83333.0,0.4682556]
[1743676464419,0.34727409,83334.0,83333.0,0.4672556]
[1743676464624,0.24,83334.0,83333.0,0.4672556]
[1743676465048,0.24,83334.0,83333.0,0.4682556]
[1743676471437,0.2401685,83334.0,83333.0,0.4682556]
[1743676471573,0.2401685,83334.0,83333.0,0.3697556]
[1743676471771,0.2401685,83334.0,83333.0,0.001]
[1743676471974,0.4921655,83334.0,83333.0,0.001]
[1743676474598,0.92091909,83334.0,83333.0,0.001]
[1743676474803,1.03767469,83334.0,83333.0,0.001]
[1743676475420,0.240061,83312.0,83307.0,0.289575]
[1743676475568,0.520061,83312.0,83307.0,0.289575]
[1743676476416,0.28,83312.0,83311.0,0.3568199]
[1743676476583,0.28,83312.0,83311.0,0.3688229]
[1743676477598,0.28,83312.0,83311.0,0.1167559]
[1743676477993,0.520061,83312.0,83311.0,0.1167559]
[1743676478196,0.28,83312.0,83311.0,0.1177559]
[1743676478377,0.28,83312.0,83311.0,0.0010003]
[1743676479230,0.520061,83312.0,83311.0,0.0010003]
[1743676479494,0.28,83312.0,83311.0,0.0010003]
[1743676479749,0.28,83312.0,83311.0,0.2410643]
[1743676480255,0.520061,83312.0,83311.0,0.0010003]
[1743676480506,0.532064,83312.0,83311.0,0.0010003]
[1743676481607,0.532064,83312.0,83311.0,3e-07]
[1743676481953,0.532064,83312.0,83311.0,0.0010003]
[1743676484690,0.28,83312.0,83311.0,0.0010003]
[1743676485705,0.28,83312.0,83311.0,0.3578199]
[1743676485912,0.28,83312.0,83311.0,0.3698229]
[1743676487268,0.28,83312.0,83311.0,0.8082229]
[1743676487465,0.28,83312.0,83311.0,0.82276375]
[1743676487883,0.28,83312.0,83311.0,0.82176375]
[1743676488243,0.28,83312.0,83311.0,0.82276375]
[1743676488454,0.0001685,83334.0,83333.0,0.252]
[1743676488661,0.2001685,83334.0,83333.0,0.4167556]
[1743676488869,0.2001685,83334.0,83333.0,0.4639556]
[1743676490179,0.2001685,83334.0,83333.0,0.1167556]
[1743676490380,0.5221655,83334.0,83333.0,0.1167556]
[1743676490590,0.240012,83329.0,83324.0,0.0461]
[1743676490793,0.012001,83326.0,83324.0,0.1167556]
[1743676491053,0.252025,83325.0,83324.0,0.1167556]
[1743676491201,0.26,83325.0,83324.0,0.1167556]
[1743676491636,0.500024,83325.0,83324.0,0.1167556]
[1743676493221,0.512025,83325.0,83324.0,0.1167556]
[1743676493428,0.512025,83325.0,83312.0,0.012003]
[1743676493429,0.240036,83321.0,83312.0,0.012003]
[1743676493641,0.500036,83321.0,83316.0,0.1167556]
[1743676494366,0.240041,83320.0,83316.0,0.1167556]
[1743676494572,0.480041,83320.0,83316.0,0.1167556]
[1743676494803,0.24,83320.0,83316.0,0.1167556]
[1743676495005,0.480038,83320.0,83316.0,0.3568046]
[1743676495238,0.480038,83320.0,83319.0,0.240041]
[1743676495239,0.24,83320.0,83319.0,0.240041]
[1743676495407,0.24,83320.0,83319.0,0.3567966]
[1743676496122,0.24,83320.0,83319.0,0.3687986]
[1743676497855,0.24,83320.0,83319.0,0.1167556]
[1743676498064,0.480038,83320.0,83319.0,0.1167556]
[1743676499673,0.24,83320.0,83319.0,0.1167556]
[1743676500107,0.24,83320.0,83319.0,0.3687986]